fUSD/lending_fUSD_20260127
["ID","MTS","AMOUNT","RATE_DAILY","PERIOD"]
[403762832,1769523101722,166.67,0.00014908,2]
[403762833,1769523103962,300.0,0.0001343,2]
[403762834,1769523104013,1200.0,0.0001343,2]
[403762835,1769523104082,420.0,0.00014722,2]
[403762836,1769523104123,1680.0,0.00014773,2]
[403762837,1769523104556,166.66,0.00013732,2]
[403762838,1769523104645,166.66,0.00014021,2]
[403762839,1769523104694,166.66,0.0001431,2]
[403762840,1769523104777,166.66,0.00014599,2]
[403762841,1769523104824,166.66,0.00014888,2]
[403762842,1769523105875,300.0,0.0001343,2]
[403762843,1769523106079,407.0,0.00014722,2]
[403762844,1769523107127,1479.29,0.00014242,2]
[403762845,1769523107288,-166.66,0.00015178,2]
[403762846,1769523107298,-2471.22237455,0.00015325,2]
[403762847,1769523107310,-546.51182598,0.00015325,2]
[403762848,1769523107321,-485.01153519,0.00015325,2]
[403762849,1769523107332,-1011.42361408,0.00015325,2]
[403762850,1769523107353,-5948.43064686,0.00015325,2]
[403762851,1769523107365,-28780.20910941,0.00015325,2]
[403762852,1769523107379,-1597.66266696,0.00015325,2]
[403762853,1769523107393,-2315.37800638,0.00015325,2]
[403762854,1769523107404,-3167.42126143,0.00015325,2]
[403762855,1769523107415,-324.27327818,0.00015325,2]
[403762856,1769523107426,-253.75974854,0.00015325,2]
[403762857,1769523107439,-2878.69273974,0.00015325,2]
[403762858,1769523107987,-163055.48390186,0.00015325,2]
[403762859,1769523107999,-49534.50000005,0.00015325,2]
[403762860,1769523108030,-918.78,0.00015325,2]
[403762861,1769523108046,-861.2,0.00015325,2]
[403762862,1769523108247,-1422.23514811,0.00015325,2]
[403762863,1769523108259,-539.63574858,0.00015325,2]
[403762864,1769523108293,-407.4279669,0.00015325,2]
[403762865,1769523108316,-4574.1801,0.00015325,2]
[403762866,1769523108330,-728906.5603272,0.00015325,2]
[403762867,1769523108339,-300.0,0.00015343,2]
[403762868,1769523108349,-189.01188501,0.00015344,2]
[403762869,1769523108358,-5877.40796389,0.00015344,2]
[403762870,1769523108369,-638.57415778,0.00015344,2]
[403762871,1769523108379,-2282.2358,0.00015344,2]
[403762872,1769523108389,-1330.944,0.00015344,2]
[403762873,1769523108398,-3023.1228,0.00015425,2]
[403762874,1769523108407,-500.0,0.00015434,2]
[403762875,1769523108417,-500.0,0.00015434,2]
[403762876,1769523108426,-500.0,0.00015434,2]
[403762877,1769523108435,-500.0,0.00015434,2]
[403762878,1769523108445,-500.0,0.00015434,2]
[403762879,1769523108454,-600.00000001,0.00015434,2]
[403762880,1769523108465,-500.0,0.00015434,2]
[403762881,1769523108474,-200.0,0.00015435,2]
[403762882,1769523108483,-200.0,0.00015435,2]
[403762883,1769523108493,-500.0,0.00015435,2]
[403762884,1769523108502,-247.52642896,0.00015435,2]
[403762885,1769523108511,-200.0,0.00015435,2]
[403762886,1769523108520,-196.38,0.00015435,2]
[403762887,1769523108532,-500.0,0.00015443,2]
[403762888,1769523108545,-500.0,0.00015443,2]
[403762889,1769523108554,-500.0,0.00015443,2]
[403762890,1769523108564,-500.0,0.00015443,2]
[403762891,1769523108574,-500.0,0.00015443,2]
[403762892,1769523108583,-908.708,0.00015443,2]
[403762893,1769523108592,-178.891,0.00015443,2]
[403762894,1769523108602,-500.0,0.00015443,2]
[403762895,1769523108611,-500.0,0.00015443,2]
[403762896,1769523108620,-500.0,0.00015443,2]
[403762897,1769523108629,-500.0,0.00015443,2]
[403762898,1769523108638,-500.0,0.00015443,2]
[403762899,1769523108647,-11606.7562,0.00015444,2]
[403762900,1769523108655,-1000.0,0.00015444,2]
[403762901,1769523108665,-500.0,0.00015444,2]
[403762902,1769523108674,-49482.07539622,0.00015514,2]
[403762903,1769523108683,-511.30863973,0.00015543,2]
[403762904,1769523108692,-500.0,0.00015543,2]
[403762905,1769523108701,-500.0,0.00015543,2]
[403762906,1769523108711,-289.04,0.00015585,2]
[403762907,1769523108720,-5877.40796385,0.00015628,2]
[403762908,1769523108729,-196.38,0.00015709,2]
[403762909,1769523108738,-500.0,0.00015718,2]
[403762910,1769523108747,-151.0,0.00015911,2]
[403762911,1769523108758,-151.0,0.00015911,2]
[403762912,1769523108767,-5877.40796385,0.00015912,2]
[403762913,1769523108776,-151.0,0.00015917,2]
[403762914,1769523108785,-151.0,0.00015938,2]
[403762915,1769523108794,-500.0,0.00015983,2]
[403762916,1769523108808,-196.4,0.00015983,2]
[403762917,1769523108817,-500.0,0.00015992,2]
[403762918,1769523108827,-166.67,0.00016138,2]
[403762919,1769523108837,-587.0,0.00016138,2]
[403762920,1769523108846,-5877.40796385,0.00016196,2]
[403762921,1769523108855,-2351.0,0.0001625,2]
[403762922,1769523108864,-6162.75122575,0.00016326,2]
[403762923,1769523108874,-289.04,0.00016328,2]
[403762924,1769523108882,-600.0,0.00016328,2]
[403762925,1769523108892,-17235.85,0.00016351,2]
[403762926,1769523108902,-217.113082,0.00016373,2]
[403762927,1769523108911,-504.6451351,0.00016373,2]
[403762928,1769523108920,-500.81908934,0.00016373,2]
[403762929,1769523108929,-1000.0,0.00016399,2]
[403762930,1769523108938,-778.86477401,0.00016438,2]
[403762931,1769523108947,-2343.45,0.00016438,2]
[403762932,1769523108956,-2343.45,0.00016438,2]
[403762933,1769523108965,-2343.45,0.00016438,2]
[403762934,1769523108975,-2343.45,0.00016438,2]
[403762935,1769523108983,-2343.45,0.00016438,2]
[403762936,1769523108994,-2343.45,0.00016438,2]
[403762937,1769523109003,-2343.45,0.00016438,2]
[403762938,1769523109013,-2343.45,0.00016438,2]
[403762939,1769523109022,-2343.45,0.00016438,2]
[403762940,1769523109032,-2343.45,0.00016438,2]
[403762941,1769523109042,-2343.45,0.00016438,2]
[403762942,1769523109051,-2343.45,0.00016438,2]
[403762943,1769523109064,-2343.45,0.00016438,2]
[403762944,1769523109074,-2343.45,0.00016438,2]
[403762945,1769523109084,-2343.45,0.00016438,2]
[403762946,1769523109093,-2343.45,0.00016438,2]
[403762947,1769523109102,-2343.45,0.00016438,2]
[403762948,1769523109111,-2343.45,0.00016438,2]
[403762949,1769523109121,-2343.45,0.00016438,2]
[403762950,1769523109130,-2343.45,0.00016438,2]
[403762951,1769523109140,-2343.45,0.00016438,2]
[403762952,1769523109149,-2343.45,0.00016438,2]
[403762953,1769523109158,-2343.45,0.00016438,2]
[403762954,1769523109167,-2343.48607744,0.00016438,2]
[403762955,1769523109177,-573.37963552,0.00016438,2]
[403762956,1769523109186,-510.0,0.00016463,2]
[403762957,1769523109196,-5877.40796385,0.0001648,2]
[403762958,1769523109205,-573.19160685,0.00016565,2]
[403762959,1769523109216,-556.29701108,0.00016718,2]
[403762960,1769523109224,-5877.40796385,0.00016764,2]
[403762961,1769523109234,-327.40203927,0.00016831,2]
[403762962,1769523109243,-1139.862,0.000169,2]
[403762963,1769523109252,-193.033,0.000169,2]
[403762964,1769523109261,-210.22,0.00016938,2]
[403762965,1769523109270,-5877.40796385,0.00017048,2]
[403762966,1769523109279,-289.04,0.0001707,2]
[403762967,1769523109288,-5877.40796385,0.00017332,2]
[403762968,1769523109297,-166.67,0.00017368,2]
[403762969,1769523109307,-266.66434274,0.00017565,2]
[403762970,1769523109316,-398.91390859,0.00017565,2]
[403762971,1769523109326,-539.7381,0.00017565,2]
[403762972,1769523109336,-5877.40796385,0.00017616,2]
[403762973,1769523109346,-823.0,0.0001769,2]
[403762974,1769523109355,-289.04,0.00017812,2]
[403762975,1769523109365,-3292.0,0.00017875,2]
[403762976,1769523109374,-5877.40796385,0.000179,2]
[403762977,1769523109385,-1033145.92175736,0.00018,2]
[403762978,1769523109394,-10877.56040666,0.00018,2]
[403762979,1769523109404,-5684.7064599,0.00018,2]
[403762980,1769523109414,-3035318.9919944,0.00018,2]
[403762981,1769523109423,-200.0,0.00018,2]
[403762982,1769523109433,-151.0,0.00018,2]
[403762983,1769523109442,-151.0,0.00018,2]
[403762984,1769523109452,-151.0,0.00018,2]
[403762985,1769523109462,-151.0,0.00018,2]
[403762986,1769523109471,-200.0,0.00018,2]
[403762987,1769523109481,-151.0,0.00018,2]
[403762988,1769523109490,-151.0,0.00018,2]
[403762989,1769523109499,-151.0,0.00018,2]
[403762990,1769523109509,-151.0,0.00018,2]
[403762991,1769523109519,-151.0,0.00018,2]
[403762992,1769523109528,-166.66,0.00018048,2]
[403762993,1769523109537,-200.0,0.0001818,2]
[403762994,1769523109546,-1000.0,0.00018222,2]
[403762995,1769523109556,-400.0,0.00018306,2]
[403762996,1769523109564,-2113.8,0.00018356,2]
[403762997,1769523109574,-200.0,0.00018362,2]
[403762998,1769523109583,-153.146,0.000185,2]
[403762999,1769523109592,-166.66,0.0001859,2]
[403763000,1769523109601,-210.22,0.0001882,2]
[403763001,1769523109610,-168.61681877,0.000189,2]
[403763002,1769523109619,-165.1,0.00019,14]
[403763003,1769523109628,-151.0,0.00019,2]
[403763004,1769523109637,-135751.14743167,0.00019,2]
[403763005,1769523109646,-166.66,0.00019132,2]
[403763006,1769523109655,-500.0,0.00019178,2]
[403763007,1769523109665,-500.0,0.00019178,2]
[403763008,1769523109676,-450.47987285,0.00019178,2]
[403763009,1769523109688,-1152.0,0.00019392,2]
[403763010,1769523109697,-283.0,0.00019663,2]
[403763011,1769523109707,-638.57415772,0.00019987,2]
[403763012,1769523109720,-1000.0,0.00020044,2]
[403763013,1769523109730,-165.14,0.00020184,2]
[403763014,1769523109739,-210.22,0.00020702,2]
[403763015,1769523109749,-566.98,0.00020852,2]
[403763016,1769523109758,-151.0,0.00021,2]
[403763017,1769523109767,-1000.0,0.00021866,2]
[403763018,1769523109776,-5000.0,0.00021918,2]
[403763019,1769523109786,-201.956184,0.00021918,2]
[403763020,1769523109795,-201.956184,0.00021918,2]
[403763021,1769523109804,-201.956184,0.00021918,2]
[403763022,1769523109813,-201.956184,0.00021918,2]
[403763023,1769523109822,-500.0,0.00021973,2]
[403763024,1769523109831,-3003.21852369,0.00022,2]
[403763025,1769523109840,-1421.45,0.00022,7]
[403763026,1769523109849,-455.11,0.00022,2]
[403763027,1769523109858,-151.0,0.000225,2]
[403763028,1769523109868,-210.22,0.00022584,2]
[403763029,1769523109877,-2000.0,0.000234,2]
[403763030,1769523109886,-28142.7,0.00023432,2]
[403763031,1769523109895,-158.11826381,0.00023466,2]
[403763032,1769523109904,-332.05,0.00024005,2]
[403763033,1769523109913,-5716.92,0.00024036,2]
[403763034,1769523109923,-638.57415772,0.00024629,2]
[403763035,1769523109932,-151.0,0.00024658,2]
[403763036,1769523109941,-151.0,0.00024658,2]
[403763037,1769523109953,-273.241576,0.00024658,2]
[403763038,1769523109963,-1000.0,0.00024658,2]
[403763039,1769523109972,-151.0,0.00024658,2]
[403763040,1769523109981,-4955.94153736,0.000249,3]
[403763041,1769523109991,-455.11,0.000249,2]
[403763042,1769523109999,-151.0,0.00025,2]
[403763043,1769523110009,-2645.6,0.00025668,2]
[403763044,1769523110019,-7874.78,0.00025869,2]
[403763045,1769523110028,-2831.0,0.00025958,2]
[403763046,1769523110039,-6549.49,0.00026827,2]
[403763047,1769523110053,-2000.0,0.000271,2]
[403763048,1769523110062,-200.0,0.0002716,2]
[403763049,1769523110071,-300.0,0.00027397,2]
[403763050,1769523110080,-307.537819,0.00027397,7]
[403763051,1769523110094,-307.537819,0.00027397,7]
[403763052,1769523110104,-307.537819,0.00027397,7]
[403763053,1769523110114,-307.537819,0.00027397,7]
[403763054,1769523110123,-151.0,0.00027397,7]
[403763055,1769523110132,-151.0,0.00027397,7]
[403763056,1769523110143,-163.156189,0.00027397,7]
[403763057,1769523110152,-455.11,0.000274,2]
[403763058,1769523110162,-638.57415772,0.00029272,2]
[403763059,1769523110171,-196.3,0.00029823,2]
[403763060,1769523110180,-151.0,0.0003,7]
[403763061,1769523110189,-174.65422019,0.0003011,30]
[403763062,1769523110198,-455.11,0.000306,2]
[403763063,1769523110208,-2000.0,0.000308,2]
[403763064,1769523110217,-1421.45,0.000322,7]
[403763065,1769523110226,-291.09036698,0.00032849,120]
[403763066,1769523110236,-344.46,0.00032877,2]
[403763067,1769523110245,-3882.68,0.000329,2]
[403763068,1769523110254,-157.16,0.000335,14]
[403763069,1769523110263,-567.0,0.00033752,2]
[403763070,1769523110272,-4831.0,0.00033752,2]
[403763071,1769523110282,-2376.0,0.00033752,2]
[403763072,1769523110291,-916.0,0.00033752,2]
[403763073,1769523110300,-1204.0,0.00033752,2]
[403763074,1769523110310,-455.11,0.000344,2]
[403763075,1769523110319,-2000.0,0.000345,2]
[403763076,1769523110328,-3882.68,0.000347,2]
[403763077,1769523110339,-567.0,0.00036752,2]
[403763078,1769523110348,-4831.0,0.00036752,2]
[403763079,1769523110359,-2376.0,0.00036752,2]
[403763080,1769523110369,-916.0,0.00036752,2]
[403763081,1769523110378,-1203.53,0.00036752,2]
[403763082,1769523110388,-2645.6,0.00037449,2]
[403763083,1769523110397,-2000.0,0.000382,2]
[403763084,1769523110408,-151.0,0.00038356,20]
[403763085,1769523110417,-151.0,0.00038356,20]
[403763086,1769523110427,-151.0,0.00038356,20]
[403763087,1769523110436,-151.0,0.00038356,20]
[403763088,1769523110446,-152.486847,0.00038356,10]
[403763089,1769523110456,-152.486847,0.00038356,10]
[403763090,1769523110466,-152.486847,0.00038356,10]
[403763091,1769523110475,-152.486847,0.00038356,10]
[403763092,1769523110484,-841.79582,0.00038356,15]
[403763093,1769523110493,-841.79582,0.00038356,15]
[403763094,1769523110503,-841.79582,0.00038356,15]
[403763095,1769523110512,-841.79582,0.00038356,15]
[403763096,1769523110522,-151.0,0.00038356,120]
[403763097,1769523110531,-151.0,0.00038356,120]
[403763098,1769523110539,-151.0,0.00038356,120]
[403763099,1769523110549,-151.0,0.00038356,120]
[403763100,1769523110558,-151.0,0.00038356,120]
[403763101,1769523110567,-151.0,0.00038356,120]
[403763102,1769523110579,-151.0,0.00038356,120]
[403763103,1769523110588,-180.734687,0.00038356,120]
[403763104,1769523110599,-3882.68,0.000387,30]
[403763105,1769523110608,-455.11,0.00039,2]
[403763106,1769523110617,-300.15403375,0.00039044,2]
[403763107,1769523110626,-300.0,0.00039044,2]
[403763108,1769523110635,-851.13552092,0.00039044,2]
[403763109,1769523110644,-304.47217561,0.00039044,2]
[403763110,1769523110653,-300.0,0.00039044,2]
[403763111,1769523110662,-579.9373616,0.00039044,2]
[403763112,1769523110671,-300.0,0.00039044,2]
[403763113,1769523110680,-300.0,0.00039044,2]
[403763114,1769523110688,-300.0,0.00039044,2]
[403763115,1769523110698,-305.64576673,0.00039044,2]
[403763116,1769523110708,-300.0,0.00039044,2]
[403763117,1769523110717,-300.0,0.00039044,2]
[403763118,1769523110727,-300.0,0.00039044,2]
[403763119,1769523110738,-300.0,0.00039044,2]
[403763120,1769523110748,-300.0,0.00039044,2]
[403763121,1769523110758,-1076.31223088,0.00039044,2]
[403763122,1769523110769,-300.0,0.00039044,2]
[403763123,1769523110778,-300.0,0.00039044,2]
[403763124,1769523110788,-369.42880651,0.00039044,2]
[403763125,1769523110797,-300.0,0.00039044,2]
[403763126,1769523110806,-300.0,0.00039044,2]
[403763127,1769523110816,-300.0,0.00039044,2]
[403763128,1769523110826,-300.0,0.00039044,2]
[403763129,1769523110836,-300.0,0.00039044,2]
[403763130,1769523110846,-300.0,0.00039044,2]
[403763131,1769523110856,-304.62142447,0.00039044,2]
[403763132,1769523110865,-300.0,0.00039044,2]
[403763133,1769523110874,-1254.1,0.00039254,120]
[403763134,1769523110883,-3882.68,0.000396,30]
[403763135,1769523110894,-1361.2,0.00039677,120]
[403763136,1769523110904,-4831.0,0.00039752,2]
[403763137,1769523110913,-265.052,0.00039752,2]
[403763138,1769523110922,-2376.0,0.00039752,2]
[403763139,1769523110931,-916.0,0.00039752,2]
[403763140,1769523110940,-3589.60000629,0.000399,2]
[403763141,1769523110949,-1361.2,0.000401,120]
[403763142,1769523110958,-1421.45,0.000402,14]
[403763143,1769523110967,-455.11,0.000402,2]
[403763144,1769523110976,-3882.68,0.000405,30]
[403763145,1769523110985,-1361.2,0.00040523,120]
[403763146,1769523110996,-152.0,0.00040891,3]
[403763147,1769523111005,-1361.2,0.00040946,120]
[403763148,1769523111015,-153.2,0.00040999,3]
[403763149,1769523111024,-985.94647965,0.00041,2]
[403763150,1769523111034,-200.0,0.00041316,6]
[403763151,1769523111047,-1361.2,0.00041369,120]
[403763152,1769523111056,-200.0,0.00041601,3]
[403763153,1769523111065,-500.0,0.00041734,60]
[403763154,1769523111076,-500.0,0.00041734,60]
[403763155,1769523111087,-1361.2,0.00041792,120]
[403763156,1769523111096,-3882.68,0.000418,30]
[403763157,1769523111106,-2000.0,0.000419,2]
[403763158,1769523111115,-200.0,0.00041913,6]
[403763159,1769523111124,-2363.10441911,0.00041975,7]
[403763160,1769523111136,-200.0,0.00041984,7]
[403763161,1769523111146,-455.11,0.00042,2]
[403763162,1769523111155,-150.0,0.00042142,30]
[403763163,1769523111164,-200.0,0.00042321,2]
[403763164,1769523111174,-200.0,0.00042321,2]
[403763165,1769523111184,-200.0,0.00042321,2]
[403763166,1769523111193,-200.0,0.00042321,2]
[403763167,1769523111203,-200.0,0.00042321,2]
[403763168,1769523111213,-200.0,0.00042321,2]
[403763169,1769523111223,-200.0,0.00042321,2]
[403763170,1769523111232,-200.0,0.00042321,2]
[403763171,1769523111241,-200.0,0.00042321,2]
[403763172,1769523111250,-200.0,0.00042321,2]
[403763173,1769523111259,-200.0,0.00042321,2]
[403763174,1769523111268,-200.0,0.00042321,2]
[403763175,1769523111277,-200.0,0.00042321,2]
[403763176,1769523111287,-200.0,0.00042321,2]
[403763177,1769523111296,-200.0,0.00042321,2]
[403763178,1769523111306,-200.0,0.00042321,2]
[403763179,1769523111316,-200.0,0.00042321,2]
[403763180,1769523111325,-200.0,0.00042321,2]
[403763181,1769523111335,-200.0,0.00042321,2]
[403763182,1769523111344,-200.0,0.00042321,2]
[403763183,1769523111354,-200.0,0.00042321,2]
[403763184,1769523111363,-200.0,0.00042321,2]
[403763185,1769523111381,-200.0,0.00042321,2]
[403763186,1769523111392,-200.0,0.00042321,2]
[403763187,1769523111402,-200.0,0.00042321,2]
[403763188,1769523111411,-200.0,0.00042321,2]
[403763189,1769523111421,-200.0,0.00042321,2]
[403763190,1769523111431,-200.0,0.00042321,2]
[403763191,1769523111440,-200.0,0.00042321,2]
[403763192,1769523111450,-200.0,0.00042321,2]
[403763193,1769523111460,-200.0,0.00042321,2]
[403763194,1769523111469,-200.0,0.00042321,2]
[403763195,1769523111479,-200.0,0.00042321,2]
[403763196,1769523111488,-200.0,0.00042321,2]
[403763197,1769523111497,-200.0,0.00042321,2]
[403763198,1769523111507,-200.0,0.00042321,2]
[403763199,1769523111517,-191.0,0.00042321,2]
[403763200,1769523111526,-4831.0,0.00042752,2]
[403763201,1769523111535,-2376.0,0.00042752,2]
[403763202,1769523111545,-916.0,0.00042752,2]
[403763203,1769523111554,-3882.68,0.000428,30]
[403763204,1769523111564,-23518.75301099,0.00042933,30]
[403763205,1769523111573,-200.0,0.00042999,60]
[403763206,1769523111582,-500.0,0.00042999,60]
[403763207,1769523111592,-150.0,0.00042999,60]
[403763208,1769523111602,-500.0,0.00042999,60]
[403763209,1769523111611,-500.0,0.00042999,60]
[403763210,1769523111620,-500.0,0.00042999,60]
[403763211,1769523111630,-500.0,0.00042999,60]
[403763212,1769523111639,-150.0,0.00042999,2]
[403763213,1769523111648,-150.0,0.00042999,2]
[403763214,1769523111657,-500.0,0.00042999,60]
[403763215,1769523111667,-500.0,0.00042999,60]
[403763216,1769523111676,-500.0,0.00042999,60]
[403763217,1769523111686,-500.0,0.00042999,60]
[403763218,1769523111695,-150.0,0.00042999,2]
[403763219,1769523111705,-500.0,0.00042999,60]
[403763220,1769523111715,-150.0,0.00042999,60]
[403763221,1769523111725,-500.0,0.00042999,60]
[403763222,1769523111739,-500.0,0.00042999,60]
[403763223,1769523111749,-151.0,0.00043,20]
[403763224,1769523111759,-151.0,0.00043,20]
[403763225,1769523111768,-151.0,0.00043,20]
[403763226,1769523111778,-157.699616,0.00043,20]
[403763227,1769523111787,-152.486847,0.00043,10]
[403763228,1769523111797,-152.486847,0.00043,10]
[403763229,1769523111807,-152.486847,0.00043,10]
[403763230,1769523111816,-152.486847,0.00043,10]
[403763231,1769523111826,-841.79582,0.00043,15]
[403763232,1769523111835,-841.79582,0.00043,15]
[403763233,1769523111844,-841.79582,0.00043,15]
[403763234,1769523111854,-841.79582,0.00043,15]
[403763235,1769523112363,-151.0,0.00043,120]
[403763236,1769523112374,-151.0,0.00043,120]
[403763237,1769523112383,-151.0,0.00043,120]
[403763238,1769523112394,-151.0,0.00043,120]
[403763239,1769523112404,-151.0,0.00043,120]
[403763240,1769523112413,-151.0,0.00043,120]
[403763241,1769523112423,-183.101787,0.00043,120]
[403763242,1769523112433,-340.66224518,0.00043029,14]
[403763243,1769523112443,-500.0,0.00043054,60]
[403763244,1769523112453,-150.0,0.00043054,60]
[403763245,1769523112464,-500.0,0.00043054,60]
[403763246,1769523112479,-500.0,0.00043054,60]
[403763247,1769523112489,-500.0,0.00043054,60]
[403763248,1769523112501,-500.0,0.00043054,60]
[403763249,1769523112511,-500.0,0.00043054,60]
[403763250,1769523112522,-600.0,0.00043054,60]
[403763251,1769523112533,-500.0,0.00043054,60]
[403763252,1769523112544,-500.0,0.00043054,60]
[403763253,1769523112553,-191.31290121,0.00043054,2]
[403763254,1769523112563,-500.0,0.00043054,60]
[403763255,1769523112575,-225.19870368,0.00043054,60]
[403763256,1769523112584,-500.0,0.00043054,60]
[403763257,1769523112600,-500.0,0.00043054,60]
[403763258,1769523112612,-189.011885,0.000431,17]
[403763259,1769523112623,-354.47848712,0.00043108,2]
[403763260,1769523112635,-500.0,0.00043109,60]
[403763261,1769523112645,-150.0,0.00043109,60]
[403763262,1769523112658,-500.0,0.00043109,60]
[403763263,1769523112669,-570.0,0.00043109,60]
[403763264,1769523112679,-500.0,0.00043109,60]
[403763265,1769523112694,-500.0,0.00043109,60]
[403763266,1769523112704,-500.0,0.00043109,60]
[403763267,1769523112715,-600.0,0.00043109,60]
[403763268,1769523112724,-500.0,0.00043109,60]
[403763269,1769523112735,-500.0,0.00043109,60]
[403763270,1769523112746,-500.0,0.00043109,60]
[403763271,1769523112757,-500.0,0.00043109,60]
[403763272,1769523112767,-386.0,0.00043115,2]
[403763273,1769523112778,-386.0,0.00043117,2]
[403763274,1769523112787,-386.0,0.00043123,2]
[403763275,1769523112798,-377.0,0.00043125,2]
[403763276,1769523112807,-2000.0,0.00043128,3]
[403763277,1769523112817,-386.0,0.00043133,2]
[403763278,1769523112827,-377.0,0.00043156,2]
[403763279,1769523112837,-500.0,0.00043163,60]
[403763280,1769523112846,-150.0,0.00043163,60]
[403763281,1769523112855,-500.0,0.00043163,60]
[403763282,1769523112865,-500.0,0.00043163,60]
[403763283,1769523112878,-500.0,0.00043163,60]
[403763284,1769523112888,-500.0,0.00043163,60]
[403763285,1769523112897,-500.0,0.00043163,60]
[403763286,1769523112907,-500.0,0.00043163,60]
[403763287,1769523112916,-386.0,0.00043164,2]
[403763288,1769523112926,-473.0,0.0004317,2]
[403763289,1769523112935,-52173.14569976,0.00043178,30]
[403763290,1769523112954,-1256.38003316,0.00043178,30]
[403763291,1769523112992,-300.0,0.00039044,2]
[403763292,1769523113001,-205.60542929,0.00043178,30]
[403763293,1769523113012,-966.59485592,0.00043178,30]
[403763294,1769523113220,-150.0,0.00033752,2]
[403763295,1769523113230,-150.0,0.00033752,2]
[403763296,1769523113239,-213.0,0.00033752,2]
[403763297,1769523113249,-200.0,0.00033752,2]
[403763298,1769523113258,-150.0,0.00036752,2]
[403763299,1769523113267,-147.99069514,0.00036752,2]
[403763300,1769523113279,-2.00930486,0.00036752,2]
[403763301,1769523113288,-150.0,0.00036752,2]
[403763302,1769523113297,-300.0,0.00039044,2]
[403763303,1769523113307,-315.2913055,0.00039044,2]
[403763304,1769523113316,-300.0,0.00039044,2]
[403763305,1769523113326,-150.0,0.00039752,2]
[403763306,1769523113335,-1102593.59739878,0.00043178,30]
[403763307,1769523113351,-151.0,0.00038356,120]
[403763308,1769523113360,-426675.8383772,0.00043178,30]
[403763309,1769523113414,-638.57415772,0.00033915,2]
[403763310,1769523113423,-300.0,0.00039044,2]
[403763311,1769523113433,-151.0,0.000431,120]
[403763312,1769523113450,-4438.54148183,0.00043178,30]
[403763313,1769523113467,-51017.73339443,0.00043178,30]
[403763314,1769523113478,-11177.99915104,0.00043178,30]
[403763315,1769523113490,-1013.32968221,0.00043178,30]
[403763316,1769523113512,-150.18231923,0.00015344,2]
[403763317,1769523113522,-419300.36604496,0.00043178,30]
[403763318,1769523121672,1500.0,0.00014242,2]
[403763319,1769523122870,24132.15069466,0.000147,2]
[403763320,1769523122899,22000.0,0.000147,2]
[403763321,1769523127276,712.64,0.00014158,2]
[403763322,1769523135343,200.0,0.00014116,2]
[403763323,1769523137705,5013.61093437,0.00011376,2]
[403763324,1769523137726,863.29906563,0.00011376,2]
[403763325,1769523145726,190.17,0.00014053,2]
[403763326,1769523145772,190.17,0.00014075,2]
[403763327,1769523145813,190.17,0.00014097,2]
[403763328,1769523145851,190.17,0.0001412,2]
[403763329,1769523145886,190.17,0.00014142,2]
[403763330,1769523145923,190.17,0.00014164,2]
[403763331,1769523145958,190.17,0.00014186,2]